Cogmind - Beta 14 *** ADVENTURER MODE // 2024.08.07 @ 23:48:48 Player: Gder Result: Destroyed by S-43 Plague with Heavy Machine Gun Performance ------------- Evolutions (7) 3500 Regions Visited (16) 3200 Robots Destroyed (217) 1085 Value Destroyed (7549) 7549 Prototype IDs (14) 280 Alien Tech Used (0) 0 Bonus (4324) 4324 TOTAL SCORE: 19938 Bonus ------- High Alert Combat Kills 657 Follower Combat Kills 1781 Entered Garrisons 200 Used RIF Installer 500 Entered DSFs 500 Built Enhanced Grunts 300 Met R17 at Cetus 500 Friendly Fire -114 Cogmind --------- Core Integrity 0/1300 Matter 116/300 Energy 99/100 System Corruption 2% Temperature Cool (0) Movement Core (50) Location -3/Garrison Parts ------- > --- POWER (2) -------- (None) > --- PROPULSION (4) --- (None) > --- UTILITY (11) ----- (None) > --- WEAPON (4) ------- (None) > --- INVENTORY (5) ---- Advanced Medium Treads Improved Heavy Treads High-capacity Storage Unit Peak State ------------ > --- POWER ------------ Antimatter Reactor > --- PROPULSION ------- (None) > --- UTILITY ---------- Advanced Heat Sink Huge Storage Unit Enhanced Optical Array Advanced Signal Interpreter Advanced Targeting Computer Advanced Targeting Computer Weapon Cycler Layered Medium Armor Plating Layered Heavy Armor Plating > --- WEAPON ----------- KE Penetrator KE Penetrator Advanced KE Penetrator > --- INVENTORY -------- Heavy Deuterium Engine Light Angular Momentum Engine Hybrid Fission Core High-capacity Storage Unit Huge Storage Unit Improved Signal Interpreter Recoil Nullifier Advanced ECM Suite Improved Light Armor Plating Improved Medium Armor Plating Improved Medium Armor Plating Improved System Restoration Module Improved System Restoration Module Recalibrator Precision Assault Rifle Coil Gun Mini Assault Cannon Rocket Array Long-range Missile Launcher Katana [Rating: 78] Favorites ----------- Power Reinforced Ion Engine Engine Reinforced Ion Engine Power Core Neutrino Core Reactor Antimatter Reactor Propulsion Wheel Treads Improved Treads Wheel Wheel Flight Unit Impulse Thruster Array Utility Huge Storage Unit Device Advanced Heat Sink Storage Huge Storage Unit Processor Visual Processing Unit Protection Improved Light Armor Plating Weapon Gauss Cannon Ballistic Gun High-powered Shotgun Ballistic Cannon Gauss Cannon Launcher Grenade Launcher Slashing Weapon Katana Build | -11 -10 -9 -9 -8 -7 -7 -6 -6 -6 -6 -6 -5 -5 -4 -3 -3 ------- Run | Yrd Mat Mat Min Mat Fac Sto Fac Ext Cet Arc Hub Fac DSF Fac Res Gar Slots Evolved 14 | . . 2 . 2 2 . 2 . . . . 2 . 2 2 . Power 1 | . . . . . . . . . . . . . . . 1 . Propulsion 2 | . . . . . . . 1 . . . . . . . 1 . Utility 9 | . . 2 . 1 2 . 1 . . . . 2 . 1 . . Weapon 2 | . . . . 1 . . . . . . . . . 1 . . Parts Attached 153 | 7 6 9 4 18 12 32 19 9 5 1 10 6 6 5 3 1 Power 9 | 1 . 1 1 . 1 1 1 2 1 . . . . . . . Engine 7 | 1 . 1 1 . 1 1 1 1 . . . . . . . . Core 1 | . . . . . . . . 1 . . . . . . . . Reactor 1 | . . . . . . . . . 1 . . . . . . . Propulsion 28 | 2 2 2 . 1 2 4 3 2 2 . 4 . . 2 2 . Treads 6 | 2 2 . . . . . . . . . . . . 2 . . Leg . | . . . . . . . . . . . . . . . . . Wheel 20 | . . 2 . 1 2 4 3 2 2 . 4 . . . . . Hover . | . . . . . . . . . . . . . . . . . Flight 2 | . . . . . . . . . . . . . . . 2 . Utility 53 | 2 2 4 3 3 3 6 12 2 2 . 4 2 5 2 1 . Device 23 | 1 . 1 . 2 2 4 7 1 . . 2 1 2 . . . Storage 7 | 1 2 1 . . . . . . . . . . 1 1 1 . Processor 10 | . . 1 1 1 . . 3 . . . 2 1 1 . . . Hackware . | . . . . . . . . . . . . . . . . . Protection 13 | . . 1 2 . 1 2 2 1 2 . . . 1 1 . . Artifact . | . . . . . . . . . . . . . . . . . Weapon 63 | 2 2 2 . 14 6 21 3 3 . 1 2 4 1 1 . 1 Energy Gun . | . . . . . . . . . . . . . . . . . Energy Cannon . | . . . . . . . . . . . . . . . . . Ballistic Gun 27 | 2 2 . . 8 1 5 1 2 . . 2 3 1 . . . Ballistic Cannon 20 | . . 2 . 4 3 7 2 1 . 1 . . . . . . Launcher 6 | . . . . 2 . 4 . . . . . . . . . . Special Weapon . | . . . . . . . . . . . . . . . . . Impact Weapon . | . . . . . . . . . . . . . . . . . Slashing Weapon 10 | . . . . . 2 5 . . . . . 1 . 1 . 1 Piercing Weapon . | . . . . . . . . . . . . . . . . . Special Melee Weapon . | . . . . . . . . . . . . . . . . . Unidentified Prototypes 7 | . . . . 1 . 4 . . . . . 1 . . 1 . Parts Lost 60 | . . 1 3 3 2 8 11 4 2 1 7 . 14 1 2 1 Power 2 | . . . . . . . 1 1 . . . . . . . . Propulsion 14 | . . . . 1 1 1 2 2 2 . 3 . 2 . . . Utility 27 | . . 1 3 . . 4 6 . . . 2 . 8 1 2 . Weapon 17 | . . . . 2 1 3 2 1 . 1 2 . 4 . . 1 Highest Loss Streak 13 | . . 1 2 2 1 3 8 2 1 1 3 . 13 1 2 1 To Critical Strikes . | . . . . . . . . . . . . . . . . . Average Slot Usage (%) 95 | . 100 97 98 99 99 98 97 99 96 99 97 93 63 16 8 4 Engine 7 | . 14 11 11 9 7 7 5 3 5 . . . . . . . Treads 4 | . 28 13 . . . . . . . . . . . . . . Wheel 13 | . . 8 22 17 14 14 18 19 16 20 18 11 3 . . . Device 16 | . 14 8 2 9 23 22 20 21 26 26 23 23 15 5 . . Storage 8 | . 14 11 11 9 7 7 6 6 6 6 6 5 3 . 3 . Processor 13 | . . 11 18 18 15 15 18 17 13 13 14 22 17 5 3 . Protection 6 | . . 11 10 9 7 6 6 6 6 6 6 5 4 4 . . Ballistic Gun 11 | . 28 7 . 14 16 14 . 2 6 6 7 13 12 . . . Ballistic Cannon 10 | . . 14 22 12 4 5 18 16 13 12 11 . . . . . Peak Build Rating 78 | 7 13 17 19 35 42 48 52 55 60 62 63 74 78 36 45 5 Average Rating 34 | 5 9 16 18 28 39 44 49 53 55 61 61 71 57 15 13 4 On Entrance 33 | . 7 13 16 19 33 42 46 52 55 60 62 62 70 9 10 10 Naked Turns 15 | . . . . . . . . . . . . . 12 . . 3 Heaviest Build 126 | 13 50 99 101 107 114 122 123 121 126 126 123 124 124 4 4 2 Greatest Support 75 | 40 46 46 28 28 22 32 30 30 30 30 30 20 10 75 16 3 Greatest Overweight (x) 12 | 3 1 3 3 8 9 9 6 5 5 4 6 6 12 1 1 . Average Overweight (x) 3 | . . 2 3 3 4 4 3 3 4 3 3 5 3 . . . Largest Inventory Capacity 25 | 8 20 25 25 25 25 25 25 25 25 25 25 25 25 20 5 5 Average Capacity 22 | 7 17 22 25 25 25 25 25 25 25 25 25 25 20 6 5 5 Most Carried 25 | 4 20 22 23 25 25 25 24 25 24 25 25 21 25 5 5 5 Average Carried 20 | 3 13 19 21 24 24 24 19 22 22 24 23 19 17 4 5 4 Final Capacity 25 | 8 20 25 25 25 25 25 25 25 25 25 25 25 5 5 5 5 Final Carried 25 | 4 20 22 23 25 24 25 21 24 24 25 21 20 4 5 5 4 Class Distribution -------------------- 42% | Scavenger-Skirmisher 34% | Mutant 8% | Skirmisher 8% | Scavenger-Gunner Dominant Class ---------------- Mutant | -10/Materials Mutant | -9/Materials Mutant | -9/Mines Scavenger-Skirmisher | -8/Materials Scavenger-Skirmisher | -7/Factory Scavenger-Skirmisher | -7/Storage Scavenger-Gunner | -6/Factory Scavenger-Skirmisher | -6/Extension Scavenger-Skirmisher | -6/Cetus Scavenger-Skirmisher | -6/Archives Scavenger-Skirmisher | -6/Hub_04(d) Scavenger-Mutant | -5/Factory Scavenger-Gunner | -5/DSF Mutant | -4/Factory Mutant | -3/Research Mutant | -3/Garrison Resources | -11 -10 -9 -9 -8 -7 -7 -6 -6 -6 -6 -6 -5 -5 -4 -3 -3 ----------- Run | Yrd Mat Mat Min Mat Fac Sto Fac Ext Cet Arc Hub Fac DSF Fac Res Gar Matter Collected 6309 | 318 191 413 182 1064 412 1249 1002 518 269 42 455 . 97 . 97 . Remotely 612 | . . . . . 412 200 . . . . . . . . . . Salvage Created 6926 | 94 326 524 189 1639 394 1390 793 767 77 142 395 . 158 . . 38 Parts 383 | 7 35 43 7 93 19 72 29 26 3 6 33 . 8 . . 2 Haulers Intercepted 14 | . 2 3 . 2 1 5 1 . . . . . . . . . Recyclers Shooed 4 | . . . . 3 . 1 . . . . . . . . . . Parts Field Recycled . | . . . . . . . . . . . . . . . . . Retrieved Matter . | . . . . . . . . . . . . . . . . . Parts Self-Destructed . | . . . . . . . . . . . . . . . . . Prevented . | . . . . . . . . . . . . . . . . . Kills | -11 -10 -9 -9 -8 -7 -7 -6 -6 -6 -6 -6 -5 -5 -4 -3 -3 ------- Run | Yrd Mat Mat Min Mat Fac Sto Fac Ext Cet Arc Hub Fac DSF Fac Res Gar Combat Hostiles Destroyed 140 | . 7 13 7 36 9 29 18 9 2 2 5 . 2 . . 1 Melee 1 | . . . . . . . . . . . . . . . . 1 Guns 47 | . 7 2 . 13 7 12 3 . . . 1 . 2 . . . Cannons 81 | . . 11 7 16 2 14 14 9 2 2 4 . . . . . AOE 11 | . . . . 7 . 3 1 . . . . . . . . . Classes Destroyed 17 | 1 5 3 1 1 1 . 2 1 . . . . 2 . . . Worker 11 | . 1 1 . 1 1 1 1 . . . 5 . . . . . Builder 13 | . . 1 . 1 . 4 5 . . . 2 . . . . . Tunneler 7 | 4 . 1 . 1 . 1 . . . . . . . . . . Hauler 14 | . 2 3 . 2 1 5 1 . . . . . . . . . Recycler 8 | . . 1 . 3 . 2 . 2 . . . . . . . . Operator 4 | . . . . 1 . 1 1 . . . 1 . . . . . Watcher 20 | . 2 4 . 4 1 2 1 2 1 . 3 . . . . . Swarmer 23 | . 4 7 . 7 . 4 . . . . . . . . . 1 Grunt 63 | . 3 4 5 21 6 13 8 2 . . 1 . . . . . Brawler 2 | . . . . . . . 2 . . . . . . . . . Sentry 35 | . . 2 . 8 1 8 6 6 . 2 2 . . . . . Demolisher 2 | . . . 2 . . . . . . . . . . . . . Specialist 1 | . . . . . . . . . . . . . 1 . . . Hunter 4 | . . . . . . . 2 . . . 2 . . . . . Programmer 6 | . . . . . 2 4 . . . . . . . . . . Heavy 1 | . . . . . . . . . . . . . 1 . . . Behemoth 1 | . . . . . . . . 1 . . . . . . . . Cetus Guard 2 | . . . . . . . . . 2 . . . . . . . Best Kill Streak 11 | 2 3 6 3 6 3 11 5 4 1 2 4 . 1 . . 1 Combat Bots Only 5 | . 2 4 3 4 3 5 4 3 1 2 3 . 1 . . 1 Max Kills in Single Turn 6 | 1 1 2 1 3 1 6 2 1 1 1 2 . 1 . . 1 Gunslinging . | . . . . . . . . . . . . . . . . . Exploded 3 | . . . . 3 . 1 1 . . . . . . . . . Melee 1 | . . . . . . . . . . . . . . . . 1 Uniques/NPCs Destroyed 1 | . . . . . . . . . 1 . . . . . . . A7 (-6/Cetus) Combat | -11 -10 -9 -9 -8 -7 -7 -6 -6 -6 -6 -6 -5 -5 -4 -3 -3 -------- Run | Yrd Mat Mat Min Mat Fac Sto Fac Ext Cet Arc Hub Fac DSF Fac Res Gar Hostile Shots Fired 1146 | . 27 44 32 102 53 272 223 73 22 4 92 . 37 20 89 56 Missed 443 | . 9 16 2 33 17 121 90 27 7 2 38 . 20 3 41 17 Damage Taken 8139 | . 148 224 481 867 457 1151 1138 526 351 36 510 . 489 273 938 550 Core 2219 | . 55 8 104 98 108 75 86 76 . . 94 . 103 96 831 485 Absorbed by Shields 280 | . . . . . . . . 79 81 . . . . . . 120 Ignored by Resistances 2451 | . 47 72 137 245 132 371 352 178 116 10 142 . 130 80 254 185 Core Remaining (%) 81 | 100 78 . 72 82 . 73 . . . . 69 . 89 91 . . Volleys Fired 394 | 8 23 44 19 81 22 58 52 24 14 3 27 6 13 . . . Largest 3 | 2 2 2 2 3 3 3 3 3 3 3 3 1 3 . . . Hottest 144 | 40 46 78 78 101 97 124 144 144 124 124 126 35 101 . . . Shots Fired 1045 | 16 46 88 38 227 63 165 156 72 42 8 79 6 39 . . . Gun 493 | 16 46 22 . 118 50 105 17 18 14 3 39 6 39 . . . Cannon 545 | . . 66 38 106 13 56 139 54 28 5 40 . . . . . Launcher 7 | . . . . 3 . 4 . . . . . . . . . . Special . | . . . . . . . . . . . . . . . . . Kinetic 1038 | 16 46 88 38 224 63 161 156 72 42 8 79 6 39 . . . Thermal . | . . . . . . . . . . . . . . . . . Explosive 7 | . . . . 3 . 4 . . . . . . . . . . Electromagnetic . | . . . . . . . . . . . . . . . . . Robot Hit Streak 28 | 4 11 13 22 12 11 21 21 13 28 7 20 . 19 . . . Robot Miss Streak 6 | 1 1 3 2 6 5 6 3 5 2 1 2 . 1 . . . Penetration Max 1 | . . . . . . 1 1 1 1 . 1 . . . . . Secondary Targets . | . . . . . . . . . . . . . . . . . Shots Hit Robots 766 | 10 33 60 28 152 49 133 113 48 32 7 66 . 32 . . 3 Core Hits 499 | 4 17 24 11 108 38 149 67 24 14 6 29 . 7 . . 1 Critical Kills 1 | . . . . . . . . . . . 1 . . . . . Critical Parts Destroyed 9 | . . 1 . 2 1 . . 1 1 . 2 . 1 . . . Critical Strikes 46 | . . 2 2 3 1 5 16 5 3 2 5 . 2 . . . Destroy 11 | . . 1 . 2 1 . . 1 1 . 3 . 2 . . . Blast 35 | . . 1 2 1 . 5 16 4 2 2 2 . . . . . Melee Attacks 21 | . . . . . 4 10 1 . . . . 1 . . . 5 Impact . | . . . . . . . . . . . . . . . . . Slashing 21 | . . . . . 4 10 1 . . . . 1 . . . 5 Piercing . | . . . . . . . . . . . . . . . . . Sneak Attacks 2 | . . . . . . 2 . . . . . . . . . . Combat Hostiles . | . . . . . . . . . . . . . . . . . Follow-up Attacks . | . . . . . . . . . . . . . . . . . Damage Inflicted 19094 | 130 460 1157 610 3359 1131 4112 3140 1461 860 176 1620 . 777 5 4 92 Guns 7708 | 130 446 232 . 1444 957 2139 301 337 272 33 640 . 777 . . . Cannons 9677 | . . 924 610 1472 174 1129 2649 1110 588 143 878 . . . . . Explosions 1242 | . . . . 410 . 642 190 . . . . . . . . . Melee 284 | . . . . . . 194 . . . . . . . . . 90 Ramming 183 | . 14 1 . 33 . 8 . 14 . . 102 . . 5 4 2 Kinetic 17385 | 130 446 1156 610 2916 1131 3268 2950 1447 860 176 1518 . 777 . . . Thermal 190 | . . . . . . . 190 . . . . . . . . . Explosive 1052 | . . . . 410 . 642 . . . . . . . . . . Electromagnetic . | . . . . . . . . . . . . . . . . . Impact . | . . . . . . . . . . . . . . . . . Slashing 284 | . . . . . . 194 . . . . . . . . . 90 Piercing . | . . . . . . . . . . . . . . . . . Highest Corruption 8 | . . . . . 5 5 . . . . 8 . 2 . 2 2 Average Corruption 4 | . . . . . 4 5 . . . . 4 . 1 . 1 2 Corruption Purged . | . . . . . . . . . . . . . . . . . Corruption Blocked . | . . . . . . . . . . . . . . . . . Effects 64 | . . . . . 10 39 . . . . 12 . 3 . . . Message Errors 22 | . . . . . 2 16 . . . . 3 . 1 . . . Matter Fused 15 | . . . . . 3 9 . . . . 2 . 1 . . . Heat Flow Errors 7 | . . . . . 2 4 . . . . . . 1 . . . Energy Discharges 4 | . . . . . . 2 . . . . 2 . . . . . Parts Fused 1 | . . . . . . . . . . . 1 . . . . . Data Loss (minor) 5 | . . . . . 2 2 . . . . 1 . . . . . Data Loss (major) 3 | . . . . . . 3 . . . . . . . . . . Misfires 3 | . . . . . 1 1 . . . . 1 . . . . . Alerts 2 | . . . . . . 1 . . . . 1 . . . . . Weapon Failures 2 | . . . . . . 1 . . . . 1 . . . . . Overload Shots . | . . . . . . . . . . . . . . . . . Overflow Damage 247 | . . 14 15 16 . 101 25 31 5 . 38 . . . . 2 Projectiles 188 | . . 14 15 16 . 64 5 31 5 . 38 . . . . . Explosions 20 | . . . . . . . 20 . . . . . . . . . Melee 39 | . . . . . . 37 . . . . . . . . . 2 Knockbacks 81 | . . 9 7 28 5 7 13 5 . . 7 . . . . . Impact . | . . . . . . . . . . . . . . . . . Kinetic 76 | . . 9 7 24 4 7 13 5 . . 7 . . . . . Secondary 5 | . . . . 4 1 . . . . . . . . . . . Self-Inflicted Damage 186 | . . . . 29 . 3 92 7 . . 50 . . 2 2 1 Shots 3 | . . . . 1 . . 2 . . . . . . . . . Rammed 14 | . 2 1 . 2 . 2 . 1 . . 3 . . 1 1 1 Targets Rammed 15 | . 2 2 . 2 . 2 . 1 . . 3 . . 1 1 1 Kicked . | . . . . . . . . . . . . . . . . . Crushed 1 | . . 1 . . . . . . . . . . . . . . Highest Temperature 277 | . 23 123 261 277 268 102 171 68 60 40 92 . 216 . . . Average Temperature 59 | . 12 38 95 84 68 29 33 17 25 30 35 . 152 . . . Received Heat Transfer 2503 | . 105 75 162 567 135 510 303 133 59 9 102 . 9 114 181 39 Siege Activations . | . . . . . . . . . . . . . . . . . Robots Corrupted . | . . . . . . . . . . . . . . . . . Combat Hostiles . | . . . . . . . . . . . . . . . . . Parts Fried . | . . . . . . . . . . . . . . . . . Impact Corruptions . | . . . . . . . . . . . . . . . . . Robots Melted . | . . . . . . . . . . . . . . . . . Combat Hostiles . | . . . . . . . . . . . . . . . . . Parts Melted . | . . . . . . . . . . . . . . . . . Heat Transferred 100 | . . . . . . . 100 . . . . . . . . . Parts Sabotaged . | . . . . . . . . . . . . . . . . . Parts Stolen . | . . . . . . . . . . . . . . . . . Parts Stripped . | . . . . . . . . . . . . . . . . . Power Chain Reactions . | . . . . . . . . . . . . . . . . . Alert | -11 -10 -9 -9 -8 -7 -7 -6 -6 -6 -6 -6 -5 -5 -4 -3 -3 ------- Run | Yrd Mat Mat Min Mat Fac Sto Fac Ext Cet Arc Hub Fac DSF Fac Res Gar Peak Influence 982 | 20 123 327 179 648 203 647 759 296 138 193 982 416 269 113 175 195 Initial 414 | . 11 2 59 . 176 . 252 235 2 38 55 414 259 79 46 115 Average 234 | 8 40 137 54 457 126 182 565 168 111 173 654 415 237 84 70 129 Maximum Alert Level 3 | . . 1 . 2 1 2 3 1 . . 3 2 1 . . . Low Security (%) 61 | 100 100 79 100 1 99 69 . 52 100 100 6 . 23 100 100 100 Level 1 13 | . . 20 . 25 . 14 17 47 . . 17 . 76 . . . Level 2 20 | . . . . 73 . 16 56 . . . 30 100 . . . . Level 3 4 | . . . . . . . 26 . . . 45 . . . . . Level 4 . | . . . . . . . . . . . . . . . . . Level 5 . | . . . . . . . . . . . . . . . . . High Security . | . . . . . . . . . . . . . . . . . Max Security . | . . . . . . . . . . . . . . . . . Squads Dispatched 34 | . 1 2 . 7 2 9 4 1 . . 6 . 2 . . . Investigation 6 | . 1 1 . 1 . . . 1 . . 2 . . . . . Extermination 5 | . . . . . 2 2 1 . . . . . . . . . Reinforcement 17 | . . 1 . 4 . 4 2 . . . 4 . 2 . . . Assault 2 | . . . . 2 . . . . . . . . . . . . Garrison 4 | . . . . . . 3 1 . . . . . . . . . Intercept . | . . . . . . . . . . . . . . . . . Searches Triggered . | . . . . . . . . . . . . . . . . . Construction Impeded 5 | . . . . 1 . 2 1 . . . 1 . . . . . Haulers Reinforced 2 | . . . . . . 2 . . . . . . . . . . Active Scanning Responses . | . . . . . . . . . . . . . . . . . Cargo Convoy Interrupts . | . . . . . . . . . . . . . . . . . Stealth | -11 -10 -9 -9 -8 -7 -7 -6 -6 -6 -6 -6 -5 -5 -4 -3 -3 --------- Run | Yrd Mat Mat Min Mat Fac Sto Fac Ext Cet Arc Hub Fac DSF Fac Res Gar Distress Signals 14 | . . 1 . 2 . 2 . 3 2 . 1 . . . 3 . Communications Jammed 1 | . . . . . . . 1 . . . . . . . . . Distress Signals 1 | . . . . . . . 1 . . . . . . . . . Times Spotted 271 | . 16 22 12 49 13 43 22 16 12 4 25 . 6 2 22 7 Peak Tracking Total 17 | . 3 5 6 5 4 5 4 3 5 1 6 . 4 2 17 7 Tactical Retreats 15 | . 1 2 . 1 1 3 1 . 1 . 1 . 1 1 2 . Traps | -11 -10 -9 -9 -8 -7 -7 -6 -6 -6 -6 -6 -5 -5 -4 -3 -3 ------- Run | Yrd Mat Mat Min Mat Fac Sto Fac Ext Cet Arc Hub Fac DSF Fac Res Gar Traps Triggered 15 | . 1 1 . 1 1 4 . 1 . . 2 . . . 2 2 Indirectly . | . . . . . . . . . . . . . . . . . Trap Hack Attempts . | . . . . . . . . . . . . . . . . . Triggered . | . . . . . . . . . . . . . . . . . Disarmed . | . . . . . . . . . . . . . . . . . Reprogrammed . | . . . . . . . . . . . . . . . . . Reused . | . . . . . . . . . . . . . . . . . Traps Extracted . | . . . . . . . . . . . . . . . . . Installed . | . . . . . . . . . . . . . . . . . Triggered . | . . . . . . . . . . . . . . . . . Machines | -11 -10 -9 -9 -8 -7 -7 -6 -6 -6 -6 -6 -5 -5 -4 -3 -3 ---------- Run | Yrd Mat Mat Min Mat Fac Sto Fac Ext Cet Arc Hub Fac DSF Fac Res Gar Machines Disabled 17 | . . . . 1 . 3 5 . 2 . 5 . . . . 1 Max in Single Turn 3 | . . . . . . 1 3 . 2 . 1 . . . . 1 Garrison Access 3 | . . . . 1 2 . . . . . . . . . . . Garrison Relay 1 | . . . . . . . . . . . . . . . . 1 Machines Repaired . | . . . . . . . . . . . . . . . . . Machines Dismantled . | . . . . . . . . . . . . . . . . . Machines Sabotaged . | . . . . . . . . . . . . . . . . . Overloaded Fab Kills . | . . . . . . . . . . . . . . . . . Hacking | -11 -10 -9 -9 -8 -7 -7 -6 -6 -6 -6 -6 -5 -5 -4 -3 -3 --------- Run | Yrd Mat Mat Min Mat Fac Sto Fac Ext Cet Arc Hub Fac DSF Fac Res Gar Machines Accessed 54 | . 8 4 . 4 8 9 3 8 3 1 3 1 . 1 1 . Terminals 45 | . 8 4 . 3 4 9 2 8 3 . 2 1 . 1 . . Fabricators 2 | . . . . . 1 . 1 . . . . . . . . . Repair Stations 2 | . . . . 1 1 . . . . . . . . . . . Recycling Units . | . . . . . . . . . . . . . . . . . Scanalyzers . | . . . . . . . . . . . . . . . . . Garrison Access 4 | . . . . . 2 . . . . . 1 . . . 1 . Total Hacks 161 | . 32 13 . 16 17 17 5 15 6 25 11 1 . 1 2 . Successful 101 | . 19 9 . 11 7 9 3 7 3 25 4 1 . 1 2 . Failed 60 | . 13 4 . 5 10 8 2 8 3 . 7 . . . . . Catastrophic 8 | . 3 . . . 1 1 2 1 . . . . . . . . Database Lockouts . | . . . . . . . . . . . . . . . . . Manual 54 | . 17 4 . 7 6 9 3 2 3 1 2 . . . . . Terminals 119 | . 32 13 . 12 10 17 4 15 6 . 8 1 . 1 . . Fabricators 2 | . . . . . 1 . 1 . . . . . . . . . Repair Stations 5 | . . . . 4 1 . . . . . . . . . . . Recycling Units . | . . . . . . . . . . . . . . . . . Scanalyzers . | . . . . . . . . . . . . . . . . . Garrison Access 10 | . . . . . 5 . . . . . 3 . . . 2 . Terminal Hacks 70 | . 11 5 . 6 3 6 1 6 3 25 2 1 . 1 . . Record 28 | . . . . . . . . . 2 25 1 . . . . . Robot Analysis 2 | . . . . 1 1 . . . . . . . . . . . Prototype ID Bank 4 | . 1 1 . 1 . 1 . . . . . . . . . . Open Door 10 | . . . . . . 3 . 6 1 . . . . . . . Open DSF 3 | . . . . . 1 . . . . . . 1 . 1 . . Level Access Points 1 | . 1 . . . . . . . . . . . . . . . Branch Access Points 3 | . . . . 2 . . . . . . 1 . . . . . Alert Level 2 | . . . . . 1 . 1 . . . . . . . . . Unreport Threat 1 | . . . . 1 . . . . . . . . . . . . Locate Traps 6 | . 3 1 . . . 2 . . . . . . . . . . Dispatch Records 1 | . . 1 . . . . . . . . . . . . . . Patrol Status 1 | . 1 . . . . . . . . . . . . . . . Investigation Status 1 | . 1 . . . . . . . . . . . . . . . Recall Investigation 1 | . 1 . . . . . . . . . . . . . . . Hauler Manifests 2 | . 1 1 . . . . . . . . . . . . . . Registered Components 1 | . 1 . . . . . . . . . . . . . . . Zone Layout 3 | . 1 1 . 1 . . . . . . . . . . . . Fabricator Hacks 1 | . . . . . . . 1 . . . . . . . . . Network Status 1 | . . . . . . . 1 . . . . . . . . . Repair Station Hacks 2 | . . . . 2 . . . . . . . . . . . . Scan Component 2 | . . . . 2 . . . . . . . . . . . . Recycling Unit Hacks . | . . . . . . . . . . . . . . . . . Scanalyzer . | . . . . . . . . . . . . . . . . . Garrison Access Hacks 4 | . . . . . 2 . . . . . . . . . 2 . Unlock Access 1 | . . . . . . . . . . . . . . . 1 . Seal Access 2 | . . . . . 2 . . . . . . . . . . . Coupler Status 1 | . . . . . . . . . . . . . . . 1 . Unauthorized Hacks 24 | . 8 4 . 3 2 3 1 1 . . 2 . . . . . Terminals 24 | . 8 4 . 3 2 3 1 1 . . 2 . . . . . Track 1 | . 1 . . . . . . . . . . . . . . . Botnet 23 | . 7 4 . 3 2 3 1 1 . . 2 . . . . . Fabricators . | . . . . . . . . . . . . . . . . . Repair Stations . | . . . . . . . . . . . . . . . . . Recycling Units . | . . . . . . . . . . . . . . . . . Scanalyzers . | . . . . . . . . . . . . . . . . . Garrison Access . | . . . . . . . . . . . . . . . . . Data Cores Recovered 3 | . . . . . . . 1 . . . 2 . . . . . Used 1 | . . . . . . . . . . . 1 . . . . . Hacking Detections 40 | . 7 4 . 4 6 6 1 6 2 . 3 . . . 1 . Full Trace Events 4 | . 1 1 . . . . . 1 . . 1 . . . . . Feedback Events . | . . . . . . . . . . . . . . . . . Feedback Blocked . | . . . . . . . . . . . . . . . . . Robot Schematics Acquired . | . . . . . . . . . . . . . . . . . Robots Built . | . . . . . . . . . . . . . . . . . Authchips . | . . . . . . . . . . . . . . . . . Time . | . . . . . . . . . . . . . . . . . Total Robot Build Rating . | . . . . . . . . . . . . . . . . . Part Schematics Acquired . | . . . . . . . . . . . . . . . . . Parts Built . | . . . . . . . . . . . . . . . . . Authchips . | . . . . . . . . . . . . . . . . . Time . | . . . . . . . . . . . . . . . . . Total Part Build Rating . | . . . . . . . . . . . . . . . . . Parts Repaired . | . . . . . . . . . . . . . . . . . Time . | . . . . . . . . . . . . . . . . . Parts Recycled . | . . . . . . . . . . . . . . . . . Recycled Matter . | . . . . . . . . . . . . . . . . . Retrieved Matter . | . . . . . . . . . . . . . . . . . Retrieved Components . | . . . . . . . . . . . . . . . . . Parts Scanalyzed . | . . . . . . . . . . . . . . . . . Part Schematics Acquired . | . . . . . . . . . . . . . . . . . Parts Damaged . | . . . . . . . . . . . . . . . . . Bothacking | -11 -10 -9 -9 -8 -7 -7 -6 -6 -6 -6 -6 -5 -5 -4 -3 -3 ------------ Run | Yrd Mat Mat Min Mat Fac Sto Fac Ext Cet Arc Hub Fac DSF Fac Res Gar Used RIF Installer 1 | . . . . . . . . . . . . . . . . 1 Robots Hacked . | . . . . . . . . . . . . . . . . . Non-combat . | . . . . . . . . . . . . . . . . . Combat . | . . . . . . . . . . . . . . . . . Robot Hacks Applied . | . . . . . . . . . . . . . . . . . Relay Couplers Released 15 | . . . . 3 4 3 . . . . . . . . . 5 Machine Destruction 8 | . . . . 3 . . . . . . . . . . . 5 Programmers 7 | . . . . . 4 3 . . . . . . . . . . Fabnet Peak Effective % . | . . . . . . . . . . . . . . . . . Robots Rewired 8 | . . . . . . . . 8 . . . . . . . . Allies Hacked . | . . . . . . . . . . . . . . . . . Hacks Repelled . | . . . . . . . . . . . . . . . . . Allies | -11 -10 -9 -9 -8 -7 -7 -6 -6 -6 -6 -6 -5 -5 -4 -3 -3 -------- Run | Yrd Mat Mat Min Mat Fac Sto Fac Ext Cet Arc Hub Fac DSF Fac Res Gar Total Allies 23 | . . . 3 . . . . 15 5 . . . . . . . Largest Group 5 | . . . 3 3 . . . 5 5 4 4 . . . . . Highest-Rated Group 480 | . . . 73 73 . . . 283 480 384 384 . . . . . Highest-Rated Ally 159 | . . . 31 31 . . . 159 159 96 96 . . . . . Total Orders 2 | . . . . . . . . . 2 . . . . . . . GUARD 1 | . . . . . . . . . 1 . . . . . . . AID 1 | . . . . . . . . . 1 . . . . . . . Ally Attacks 252 | . . . 2 41 . . . 73 40 4 92 . . . . . Total Damage 7589 | . . . 20 470 . . . 1431 1710 193 3765 . . . . . Kills 44 | . . . 1 4 . . . 4 7 2 26 . . . . . Allies Corrupted . | . . . . . . . . . . . . . . . . . Allies Melted . | . . . . . . . . . . . . . . . . . Intel | -11 -10 -9 -9 -8 -7 -7 -6 -6 -6 -6 -6 -5 -5 -4 -3 -3 ------- Run | Yrd Mat Mat Min Mat Fac Sto Fac Ext Cet Arc Hub Fac DSF Fac Res Gar Robot Analysis Total 2 | . . . . 1 1 . . . . . . . . . . . Derelict Logs Recovered 2 | . . . 2 . . . . . . . . . . . . . Drone Launches . | . . . . . . . . . . . . . . . . . Drone Recoveries . | . . . . . . . . . . . . . . . . . Exploration | -11 -10 -9 -9 -8 -7 -7 -6 -6 -6 -6 -6 -5 -5 -4 -3 -3 ------------- Run | Yrd Mat Mat Min Mat Fac Sto Fac Ext Cet Arc Hub Fac DSF Fac Res Gar Turns Passed 11953 | 147 1507 987 1020 1670 1261 1555 823 804 493 192 744 217 151 172 161 49 Spaces Moved 6590 | 72 642 440 682 833 759 649 455 478 303 129 447 122 95 143 296 45 Core 571 | 21 . . . . . . . . . . . . 68 142 295 45 Treads 900 | 51 642 206 . . . . . . . . . . . 1 . . Legs . | . . . . . . . . . . . . . . . . . Wheels 5118 | . . 234 682 833 759 649 455 478 303 129 447 122 27 . . . Hover . | . . . . . . . . . . . . . . . . . Flight 1 | . . . . . . . . . . . . . . . 1 . Fastest Speed 45 | 50 160 140 140 140 145 140 125 125 125 125 125 155 50 50 45 50 Average Speed 146 | 152 211 187 140 142 148 155 134 128 144 138 139 161 109 94 50 50 Slowest Speed 320 | 200 240 320 140 210 225 225 170 155 155 140 170 170 260 160 100 50 Overloaded Moves . | . . . . . . . . . . . . . . . . . Propulsion Burnouts . | . . . . . . . . . . . . . . . . . Robots Hopped . | . . . . . . . . . . . . . . . . . Cave-ins Triggered . | . . . . . . . . . . . . . . . . . Exploration Rate (%) 47 | 6 93 37 98 59 16 86 11 59 87 90 50 2 88 5 16 12 Regions Visited 16 Branch Regions 6 Pre-discovered Areas 1 | . . . 1 . . . . . . . . . . . . . Known Exits Taken 13 | . 1 . 1 1 1 1 1 1 1 1 1 1 . 1 1 . Unknown Exits Taken 2 | 1 . 1 . . . . . . . . . . . . . . Scrap Searched 1 | . . . 1 . . . . . . . . . . . . . Spaces Dug 21 | . . . . . 5 5 3 . . . . 8 . . . . Terrain Destroyed 214 | . . 1 2 24 5 67 81 14 5 . 6 8 1 . . . Melee 10 | . . . . . 3 5 1 . . . . 1 . . . . Projectile 111 | . . 1 2 6 2 24 44 14 5 . 6 7 . . . . AOE 92 | . . . . 18 . 38 36 . . . . . . . . . Terrain Rammed . | . . . . . . . . . . . . . . . . . Walls Destroyed . | . . . . . . . . . . . . . . . . . Machines Disabled . | . . . . . . . . . . . . . . . . . Actions | -11 -10 -9 -9 -8 -7 -7 -6 -6 -6 -6 -6 -5 -5 -4 -3 -3 --------- Run | Yrd Mat Mat Min Mat Fac Sto Fac Ext Cet Arc Hub Fac DSF Fac Res Gar Total 8077 | 90 745 516 708 1158 846 1045 555 616 333 140 523 135 117 180 306 64 Wait 631 | . 51 6 1 167 32 276 18 34 6 . 8 . . 27 5 . Move 6574 | 71 641 439 681 832 758 648 454 477 302 128 446 121 94 142 295 45 Hop . | . . . . . . . . . . . . . . . . . Pick Up 114 | 4 16 7 2 32 9 13 7 8 3 5 5 1 2 . . . Fast Attach 28 | 7 . 3 1 . 1 4 4 . . . 2 . 1 2 3 . Attach 55 | . . 2 2 5 3 11 11 5 2 1 4 2 3 3 . 1 Detach 9 | . . 2 . . . 1 1 . . . . . 1 4 . . Swap 70 | . 6 4 1 13 8 17 4 4 3 . 4 4 2 . . . Drop 76 | . 6 7 . 26 9 5 3 1 3 3 8 . 1 1 2 1 Fire 394 | 8 23 44 19 81 22 58 52 24 14 3 27 6 13 . . . Melee 21 | . . . . . 4 10 1 . . . . 1 . . . 5 Ram 12 | . . 1 . 2 . 2 . 1 . . 3 . . 1 1 1 Kick . | . . . . . . . . . . . . . . . . . Crush 3 | . 2 1 . . . . . . . . . . . . . . Escape Stasis 35 | . . . . . . . . 8 . . 16 . . . . 11 Rewire 55 | . . . 1 . . . . 54 . . . . . . . . Trap . | . . . . . . . . . . . . . . . . . Miscellaneous . | . . . . . . . . . . . . . . . . . Route ------- -11/Scrapyard -10/Materials (discovered 4 exits: *Mat x3 / [*Min]) -9/Materials -9/Mines (discovered 2 exits: *Mat x2) -8/Materials (discovered 2 exits: *Fac x2) -7/Factory -7/Storage -6/Factory -6/Extension (discovered 3 exits: *Fac x2 / *Cet) -6/Cetus (discovered 2 exits: *Fac / *Arc) -6/Archives (discovered 3 exits: *Fac / *Hub x2) -6/Hub_04(d) (discovered 2 exits: *Fac x2) -5/Factory -5/DSF -4/Factory -3/Research -3/Garrison History --------- Turn | Location | Event 15 | -11/Scrapyard | Discovered new exit (range 16) 148 | -11/Scrapyard | Entered Materials 290 | -10/Materials | Discovered new exit (range 15) 308 | -10/Materials | Build established: Mutant 412 | -10/Materials | Identified exit to Materials 978 | -10/Materials | Discovered new exit (range 7) 1655 | -10/Materials | Entered another Materials area 1655 | -9/Materials | Evolved 2 slots: Utility x2 2170 | -9/Materials | Discovered new exit (range 12) 2642 | -9/Materials | Entered Mines 2777 | -9/Mines | Learned 4 Materials zone layouts 2794 | -9/Mines | Discovered new exit (range 14) 2822 | -9/Mines | Discovered new exit (range 7) 2851 | -9/Mines | Assembled infested the area 2916 | -9/Mines | Met 8R-AWN 3032 | -9/Mines | Escorted by a lone wolf Derelict 3521 | -9/Mines | Identified exit to Materials 3662 | -9/Mines | Entered Materials 3662 | -8/Materials | Accompanied by 3 allies 3662 | -8/Materials | Evolved 2 slots: Utility x1, Weapon x1 3667 | -8/Materials | Led the pair of lost Derelicts to an unsafe place 3969 | -8/Materials | Build established: Skirmisher 4227 | -8/Materials | Discovered new exit (range 11) 4240 | -8/Materials | Identified exit to Factory 4776 | -8/Materials | Build established: Scavenger-Skirmisher 4916 | -8/Materials | Discovered exit to Factory (range 18) 5262 | -8/Materials | First assault squad dispatched 5332 | -8/Materials | Entered Factory 5332 | -7/Factory | Evolved 2 slots: Utility x2 5574 | -7/Factory | Discovered new exit (range 9) 5619 | -7/Factory | Identified exit to Storage 6593 | -7/Factory | Entered Storage 6606 | -7/Storage | Met 01-MTF 6628 | -7/Storage | Found Prototype Launcher 6629 | -7/Storage | Identified Rocket Array 6975 | -7/Storage | Lost 3 parts (2u1w) 7782 | -7/Storage | Garrison activated, responded to threat 8123 | -7/Storage | Discovered new exit (range 17) 8146 | -7/Storage | Identified exit to Factory 8148 | -7/Storage | Entered Factory 8148 | -6/Factory | Evolved 2 slots: Propulsion x1, Utility x1 8372 | -6/Factory | Lost 8 parts (2n5u1w) 8501 | -6/Factory | Garrison activated, responded to threat 8531 | -6/Factory | Build established: Scavenger-Gunner 8624 | -6/Factory | Discovered new exit (range 12) 8646 | -6/Factory | Lost 3 parts (1p1u1w) 8970 | -6/Factory | Identified exit to Extension 8971 | -6/Factory | Entered Extension 8987 | -6/Extension | Build established: Scavenger-Skirmisher 9029 | -6/Extension | Rescued a captive Derelict 9055 | -6/Extension | Rescued a captive Derelict 9056 | -6/Extension | Rescued a captive Derelict 9099 | -6/Extension | Rescued a captive Derelict 9100 | -6/Extension | Rescued a captive Derelict 9304 | -6/Extension | Lost 9 allies 9372 | -6/Extension | Rescued a captive Derelict 9508 | -6/Extension | Spotted B-75 Beast 9516 | -6/Extension | Rescued A7 9534 | -6/Extension | Spotted B-75 Beast 9552 | -6/Extension | Allies destroyed B-75 Beast 9564 | -6/Extension | Destroyed B-75 Beast 9606 | -6/Extension | Discovered new exit (range 3) 9610 | -6/Extension | Identified exit to Factory 9750 | -6/Extension | Discovered new exit (range 16) 9753 | -6/Extension | Discovered exit to Factory (range 14) 9773 | -6/Extension | Identified exit to Cetus 9775 | -6/Extension | Entered Cetus 9775 | -6/Cetus | Accompanied by 3 allies (A7) 9780 | -6/Cetus | Acquired a Cetus Manufacturing Module code from A7 9792 | -6/Cetus | Spotted Cetus Guard 9792 | -6/Cetus | Spotted Cetus Guard 9793 | -6/Cetus | Spotted Cetus Guard 9794 | -6/Cetus | Spotted Cetus Guard 9822 | -6/Cetus | Allies destroyed Cetus Guard 9825 | -6/Cetus | Destroyed Cetus Guard 9827 | -6/Cetus | Allies destroyed Cetus Guard 9832 | -6/Cetus | Allies destroyed A7 9837 | -6/Cetus | Extracted ID and sensor layout for unrecognized location from A7's data core 9863 | -6/Cetus | Lost 3 allies 9965 | -6/Cetus | Started Cetus Manufacturing Module 9990 | -6/Cetus | Manufactured an Enhanced Grunt 10015 | -6/Cetus | Manufactured an Enhanced Grunt 10040 | -6/Cetus | Manufactured an Enhanced Grunt 10065 | -6/Cetus | Manufactured an Enhanced Grunt 10090 | -6/Cetus | Manufactured an Enhanced Grunt 10123 | -6/Cetus | Discovered new exit (range 16) 10141 | -6/Cetus | Identified exit to Archives 10167 | -6/Cetus | Spotted Cetus Guard 10167 | -6/Cetus | Spotted Cetus Guard 10174 | -6/Cetus | Destroyed Cetus Guard 10175 | -6/Cetus | Spotted Cetus Guard 10176 | -6/Cetus | Allies destroyed Cetus Guard 10181 | -6/Cetus | Spotted Cetus Guard 10184 | -6/Cetus | Allies destroyed Cetus Guard 10193 | -6/Cetus | Allies destroyed Cetus Guard 10202 | -6/Cetus | Discovered exit to Factory (range 16) 10210 | -6/Cetus | Met Revision 17 10268 | -6/Cetus | Entered Archives 10268 | -6/Archives | Accompanied by 4 allies 10309 | -6/Archives | Discovered exit to Factory (range 15) 10327 | -6/Archives | Discovered new exit (range 16) 10342 | -6/Archives | Unable to access archive contents 10357 | -6/Archives | Unable to access archive contents 10409 | -6/Archives | Unable to access archive contents 10426 | -6/Archives | Unable to access archive contents 10430 | -6/Archives | Discovered new exit (range 16) 10450 | -6/Archives | Identified exit to Hub_04(d) 10460 | -6/Archives | Entered Hub_04(d) 10460 | -6/Hub_04(d) | Accompanied by 4 allies 10460 | -6/Hub_04(d) | Discovered exit to Factory (range 10) 11022 | -6/Hub_04(d) | Lost 4 allies 11047 | -6/Hub_04(d) | Lost 3 parts (1n2w) 11051 | -6/Hub_04(d) | Discovered exit to Factory (range 5) 11204 | -6/Hub_04(d) | Entered Factory 11204 | -5/Factory | Evolved 2 slots: Utility x2 11421 | -5/Factory | Identified exit to DSF 11421 | -5/Factory | Entered DSF 11517 | -5/DSF | Additional patrols routed to DSF 11536 | -5/DSF | Released all parts (12) 11564 | -5/DSF | Discovered new exit (range 16) 11567 | -5/DSF | Lost 13 parts (1n8u4w) 11571 | -5/DSF | Identified exit to Factory 11572 | -5/DSF | Entered Factory 11572 | -4/Factory | Evolved 2 slots: Utility x1, Weapon x1 11728 | -4/Factory | Discovered new exit (range 11) 11743 | -4/Factory | Identified exit to Research 11744 | -4/Factory | Entered Research 11744 | -3/Research | Evolved 2 slots: Power x1, Propulsion x1 11819 | -3/Research | Build established: Mutant 11832 | -3/Research | Spotted B-86 Titan 11895 | -3/Research | Core integrity fell below 50% 11904 | -3/Research | Identified exit to Garrison 11905 | -3/Research | Entered Garrison 11915 | -3/Garrison | Installed Relay Interface Framework 11938 | -3/Garrison | Core integrity fell below 20% 11945 | -3/Garrison | Triggered checkpoint 11949 | -3/Garrison | Garrison Relay disabled 11954 | -3/Garrison | Destroyed by S-43 Plague with Heavy Machine Gun Last Messages --------------- 11927_ Field strength at 37. 11930_ Destroyed Xenon Bombardment Thruster. 11934_ Stasis field depleted. 11935_ Triggered Stasis Trap. 11935_ A bubble of rippling energy engulfs the area. 11935_ Field strength at 94. 11936_ Field strength at 84. 11937_ Field strength at 73. 11938_ S-43 Plague destroyed. 11940_ Field strength at 12. 11941_ Stasis field depleted. 11945_ Beams of light sweep through the air. An alarm sounds. 11949_ Garrison Relay disabled. 11949_ Relay Coupler [Sentry] tumbles out of relay unit. 11949_ Relay Coupler [NC] tumbles out of relay unit. 11949_ Relay Coupler [Grunt] tumbles out of relay unit. 11949_ Relay Coupler [Cutter] tumbles out of relay unit. 11949_ Relay Coupler [NC] tumbles out of relay unit. 11952_ Katana destroyed. 11952_ Slammed into S-43 Plague. Map ----- +----------------------------------------------------+ | ?????????????????????????????????????????????????? | | ?????????????????????????????????????????????????? | | ?????????????????????????????????????????????????? | | ?????????????????????????????????????????????????? | | ?????????????????????????????????????????????????? | | ?????????????????????????????????????????????????? | | ?????????????????????????????????????????????????? | | ?????????????????????????????????????????????????? | | ?????????????????????????????????????????????????? | | ?????????????????????????????????????????????????? | | ??????????????????????????????????#####??????????? | | ??????????????????????????????????#"""#??????????? | | ??????????????????????????????????#" "#??????????? | | ??????????????????????????????????#" "#??????????? | | ??????????????????????????????????#" "#??????????? | | ??????????????????????????????????# #??????????? | | ??????????????????????????????????## ##??????????? | | ??????????????????################## ############? | | ?????????????????? #? | | ?????????????????? [ #? | | ?????????????????? %= #? | | ??????????????????????######### ############ ! #? | | ??????????????????????????????# #??????????# #? | | ?????????????????????###??????# #??????????#####? | | ????????????????######T########g #???????????????? | | ????????????????# @ s g #???????????????? | | ????????????????# ! !s s g #???????????????? | | ????????????????##!!!##### #####???????????????? | | ????????????????#""" "#??# #???????????????????? | | ????????????????#######??#####???????????????????? | | ?????????????????????????????????????????????????? | | ?????????????????????????????????????????????????? | | ?????????????????????????????????????????????????? | | ?????????????????????????????????????????????????? | | ?????????????????????????????????????????????????? | | ?????????????????????????????????????????????????? | | ?????????????????????????????????????????????????? | | ?????????????????????????????????????????????????? | | ?????????????????????????????????????????????????? | | ?????????????????????????????????????????????????? | | ?????????????????????????????????????????????????? | | ?????????????????????????????????????????????????? | | ?????????????????????????????????????????????????? | | ?????????????????????????????????????????????????? | | ?????????????????????????????????????????????????? | | ?????????????????????????????????????????????????? | | ?????????????????????????????????????????????????? | | ?????????????????????????????????????????????????? | | ?????????????????????????????????????????????????? | | ?????????????????????????????????????????????????? | +----------------------------------------------------+ Best States ------------- Heat Dissipation 78 Energy Generation 21 Energy Capacity 600 Matter Stores 300 Matter Capacity 300 Sight Range 22 Robot Scan Range 16 Terrain Scan Density 10 Jamming Range 12 Armor Coverage 825 Resistance: KI 20 Resistance: TH 20 Resistance: EX 20 Resistance: EM 20 Resistance: I 20 Resistance: S 20 Resistance: P 20 Weapon Cycling 15 Evasion (%) 50 Targeting Accuracy 16 Recoil Reduction 4 Kinecelleration 30 Offensive Hacking 10 Item Schematics ----------------- None Robot Schematics ------------------ None Fabricated ------------ Nothing Alien Tech Used ----------------- None Achievements -------------- More Dakka Please Prolific Hacker Revising The Future Challenges ------------ None Game ------ Seed RingGravitonClaws Manual? 0 Play Time 02:47:09 Cumulative 33.2 hours Start 2024.08.07 @ 14:05:55 End 2024.08.07 @ 23:48:48 Sessions 5 Manual Loads 0 Difficulty Adventurer Special Mode None Game No. 17 Rogue 0 Adventurer 13 Explorer 4 Win Type - Total 0 Types 0/0/0/0/0/0/0/0/0 Lore% 10 Gallery% 24 Achievement% 28 Wizard Run 0 Options --------- Layout 0 ASCII 0 Keyboard 0 Movement Numpad Keybinds 0 Fullscreen 1 Font 18/SmallcapsGlow Map View 76x50 Zoom Use 0% Tactical HUD 1 Map Filters NONE Filters NONE Steam 1 RUN: dcc49a1e-d429-4b76-baf5-c2fffd1aa993